[Event "Titled Tuesday Blitz April 25 Late 2023"]
[White "Estrada Nieto, Julian"]
[Black "Romero Ruscalleda, Josep"]
[WhiteFideId "5101018"]
[BlackFideId "2231859"]
[WhiteElo "2161"]
[BlackElo "2183"]
[Result "1-0"]
[Round "11"]
[TimeControl "180+2"]
[Date "2023.04.25"]
[WhiteClock "0:02:52"]
[BlackClock "0:02:29"]

1. e4 {[%clk 0:03:00]}  g6 {[%clk 0:03:00]} 2. d4 {[%clk 0:03:00]}  Bg7 {[%clk 0:03:01]} 3. Nf3 {[%clk 0:03:00]}  d6 {[%clk 0:03:01]} 4. Nc3 {[%clk 0:03:01]}  a6 {[%clk 0:03:00]} 5. a4 {[%clk 0:03:01]}  Nc6 {[%clk 0:02:59]} 6. Be2 {[%clk 0:03:00]}  e5 {[%clk 0:02:57]} 7. dxe5 {[%clk 0:03:00]}  Nxe5 {[%clk 0:02:57]} 8. Nxe5 {[%clk 0:02:59]}  Bxe5 {[%clk 0:02:57]} 9. O-O {[%clk 0:02:59]}  Bg7 {[%clk 0:02:40]} 10. Be3 {[%clk 0:02:59]}  Ne7 {[%clk 0:02:39]} 11. Bd4 {[%clk 0:02:59]}  O-O {[%clk 0:02:38]} 12. Bxg7 {[%clk 0:02:58]}  Kxg7 {[%clk 0:02:38]} 13. f4 {[%clk 0:02:57]}  f5 {[%clk 0:02:36]} 14. Qd4+ {[%clk 0:02:55]}  Kg8 {[%clk 0:02:36]} 15. Bc4+ {[%clk 0:02:54]}  d5 {[%clk 0:02:35]} 16. Nxd5 {[%clk 0:02:53]}  Nxd5 {[%clk 0:02:28]} 17. Bxd5+ {[%clk 0:02:53]}  Rf7 {[%clk 0:02:29]} 18. Bxf7+ {[%clk 0:02:52]}  Kxf7 {[%clk 0:02:29]} 19. Qxd8 {[%clk 0:02:52]} 1-0


[Site "https://www.chess.com"]

[Event "Titled Tuesday Blitz April 25 Late 2023"]
[White "Sailer, Mike"]
[Black "Hoffmann, Asa"]
[WhiteFideId "2012901"]
[BlackFideId "2001470"]
[WhiteElo "2109"]
[BlackElo "2117"]
[Result "0-1"]
[Round "11"]
[TimeControl "180+2"]
[Date "2023.04.25"]
[WhiteClock "0:00:31"]
[BlackClock "0:01:17"]

1. d4 {[%clk 0:03:00]}  Nf6 {[%clk 0:02:58]} 2. Bg5 {[%clk 0:02:59]}  e6 {[%clk 0:02:57]} 3. Nd2 {[%clk 0:02:59]}  Be7 {[%clk 0:02:56]} 4. e4 {[%clk 0:02:59]}  d6 {[%clk 0:02:56]} 5. Bd3 {[%clk 0:02:56]}  Nbd7 {[%clk 0:02:55]} 6. c3 {[%clk 0:02:48]}  e5 {[%clk 0:02:54]} 7. Ne2 {[%clk 0:02:44]}  c6 {[%clk 0:02:54]} 8. Ng3 {[%clk 0:02:44]}  h6 {[%clk 0:02:52]} 9. Be3 {[%clk 0:02:39]}  g6 {[%clk 0:02:50]} 10. h4 {[%clk 0:02:35]}  Nf8 {[%clk 0:02:46]} 11. h5 {[%clk 0:02:34]}  Ng4 {[%clk 0:02:42]} 12. hxg6 {[%clk 0:02:29]}  fxg6 {[%clk 0:02:38]} 13. Qe2 {[%clk 0:02:24]}  Nxe3 {[%clk 0:02:37]} 14. Qxe3 {[%clk 0:02:24]}  Bg5 {[%clk 0:02:36]} 15. Qe2 {[%clk 0:02:23]}  Ne6 {[%clk 0:02:35]} 16. Bc4 {[%clk 0:02:04]}  Nf4 {[%clk 0:02:25]} 17. Qf1 {[%clk 0:02:04]}  d5 {[%clk 0:02:23]} 18. exd5 {[%clk 0:02:01]}  cxd5 {[%clk 0:02:22]} 19. Bb5+ {[%clk 0:02:02]}  Bd7 {[%clk 0:02:22]} 20. Bxd7+ {[%clk 0:02:02]}  Qxd7 {[%clk 0:02:21]} 21. dxe5 {[%clk 0:01:47]}  O-O-O {[%clk 0:02:20]} 22. O-O-O {[%clk 0:01:47]}  Qa4 {[%clk 0:02:12]} 23. Kb1 {[%clk 0:01:43]}  Rhe8 {[%clk 0:02:09]} 24. Nb3 {[%clk 0:01:22]}  Rxe5 {[%clk 0:02:01]} 25. Rd4 {[%clk 0:01:23]}  Qc6 {[%clk 0:01:49]} 26. Qd1 {[%clk 0:00:54]}  Rde8 {[%clk 0:01:42]} 27. Rb4 {[%clk 0:00:42]}  b6 {[%clk 0:01:38]} 28. Nd4 {[%clk 0:00:39]}  Qd7 {[%clk 0:01:36]} 29. Nf3 {[%clk 0:00:38]}  R5e6 {[%clk 0:01:23]} 30. Nxg5 {[%clk 0:00:37]}  hxg5 {[%clk 0:01:22]} 31. Qg4 {[%clk 0:00:31]}  Re1+ {[%clk 0:01:19]} 32. Rxe1 {[%clk 0:00:31]}  Rxe1+ {[%clk 0:01:17]} 0-1


[Site "https://www.chess.com"]

[Event "Titled Tuesday Blitz April 25 Late 2023"]
[White "Dargan, Paul A G"]
[Black "Figorito, Nick"]
[WhiteFideId "416762"]
[BlackFideId "30923689"]
[WhiteElo "2042"]
[BlackElo "2036"]
[Result "1-0"]
[Round "11"]
[TimeControl "180+2"]
[Date "2023.04.25"]
[WhiteClock "0:00:17"]
[BlackClock "0:00:28"]

1. e4 {[%clk 0:03:00]}  e6 {[%clk 0:03:00]} 2. d4 {[%clk 0:02:59]}  d5 {[%clk 0:03:01]} 3. Nd2 {[%clk 0:02:59]}  Nf6 {[%clk 0:03:00]} 4. e5 {[%clk 0:02:58]}  Nfd7 {[%clk 0:03:01]} 5. c3 {[%clk 0:02:58]}  c5 {[%clk 0:03:01]} 6. Bd3 {[%clk 0:02:58]}  Nc6 {[%clk 0:03:02]} 7. Ndf3 {[%clk 0:02:56]}  Be7 {[%clk 0:03:02]} 8. Ne2 {[%clk 0:02:52]}  a5 {[%clk 0:03:01]} 9. O-O {[%clk 0:02:51]}  a4 {[%clk 0:03:02]} 10. a3 {[%clk 0:02:46]}  c4 {[%clk 0:03:01]} 11. Bc2 {[%clk 0:02:45]}  b5 {[%clk 0:03:02]} 12. g3 {[%clk 0:02:43]}  Na5 {[%clk 0:03:01]} 13. Kg2 {[%clk 0:02:36]}  Nb3 {[%clk 0:03:01]} 14. Rb1 {[%clk 0:02:35]}  Nxc1 {[%clk 0:02:52]} 15. Qxc1 {[%clk 0:02:32]}  h6 {[%clk 0:02:50]} 16. h4 {[%clk 0:02:30]}  Bb7 {[%clk 0:02:48]} 17. Nh2 {[%clk 0:02:25]}  Qc7 {[%clk 0:02:47]} 18. f4 {[%clk 0:02:25]}  g6 {[%clk 0:02:46]} 19. Nf3 {[%clk 0:02:22]}  h5 {[%clk 0:02:46]} 20. Qe3 {[%clk 0:02:14]}  O-O-O {[%clk 0:02:45]} 21. Nc1 {[%clk 0:02:10]}  Nb8 {[%clk 0:02:38]} 22. Na2 {[%clk 0:02:10]}  Nc6 {[%clk 0:02:38]} 23. Nb4 {[%clk 0:02:11]}  Nxb4 {[%clk 0:02:38]} 24. axb4 {[%clk 0:02:06]}  Kd7 {[%clk 0:02:35]} 25. Ra1 {[%clk 0:02:04]}  Ra8 {[%clk 0:02:35]} 26. Nd2 {[%clk 0:02:04]}  Bc6 {[%clk 0:02:30]} 27. Qf3 {[%clk 0:01:46]}  Rhg8 {[%clk 0:02:15]} 28. Ra3 {[%clk 0:01:21]}  Rh8 {[%clk 0:02:15]} 29. Rfa1 {[%clk 0:01:20]}  Rhg8 {[%clk 0:02:12]} 30. b3 {[%clk 0:01:16]}  axb3 {[%clk 0:02:04]} 31. Rxa8 {[%clk 0:01:08]}  Rxa8 {[%clk 0:02:05]} 32. Rxa8 {[%clk 0:01:05]}  Bxa8 {[%clk 0:01:57]} 33. Bb1 {[%clk 0:01:03]}  Qa7 {[%clk 0:01:55]} 34. f5 {[%clk 0:00:52]}  exf5 {[%clk 0:01:38]} 35. Bxf5+ {[%clk 0:00:48]}  gxf5 {[%clk 0:01:36]} 36. Qxf5+ {[%clk 0:00:49]}  Ke8 {[%clk 0:01:29]} 37. Nf3 {[%clk 0:00:45]}  b2 {[%clk 0:01:16]} 38. e6 {[%clk 0:00:44]}  fxe6 {[%clk 0:01:10]} 39. Qg6+ {[%clk 0:00:44]}  Kd8 {[%clk 0:01:04]} 40. Ne5 {[%clk 0:00:42]}  Qa1 {[%clk 0:00:50]} 41. Qxe6 {[%clk 0:00:41]}  Qa7 {[%clk 0:00:34]} 42. Nf7+ {[%clk 0:00:35]}  Ke8 {[%clk 0:00:28]} 43. Nd6+ {[%clk 0:00:29]}  Kd8 {[%clk 0:00:28]} 44. Qc8# {[%clk 0:00:17]} 1-0


[Site "https://www.chess.com"]

[Event "Titled Tuesday Blitz April 25 Late 2023"]
[White "Skaric, Djuro"]
[Black "Holtel, Jasper"]
[WhiteFideId "934569"]
[BlackFideId "12956376"]
[WhiteElo "2282"]
[BlackElo "2372"]
[Result "1-0"]
[Round "11"]
[TimeControl "180+2"]
[Date "2023.04.25"]
[WhiteClock "0:01:04"]
[BlackClock "0:00:03"]

1. g3 {[%clk 0:03:00]}  Nf6 {[%clk 0:02:59]} 2. Bg2 {[%clk 0:03:01]}  g6 {[%clk 0:02:59]} 3. d3 {[%clk 0:03:02]}  Bg7 {[%clk 0:03:00]} 4. e4 {[%clk 0:03:02]}  O-O {[%clk 0:02:58]} 5. f4 {[%clk 0:03:01]}  d6 {[%clk 0:02:58]} 6. Nf3 {[%clk 0:03:02]}  c5 {[%clk 0:02:58]} 7. O-O {[%clk 0:03:03]}  Nc6 {[%clk 0:02:59]} 8. Nc3 {[%clk 0:03:02]}  Rb8 {[%clk 0:02:59]} 9. a4 {[%clk 0:03:01]}  b6 {[%clk 0:02:48]} 10. h3 {[%clk 0:03:01]}  Bd7 {[%clk 0:02:46]} 11. g4 {[%clk 0:03:01]}  a6 {[%clk 0:02:45]} 12. Ne2 {[%clk 0:03:00]}  b5 {[%clk 0:02:45]} 13. axb5 {[%clk 0:03:00]}  axb5 {[%clk 0:02:46]} 14. Ng3 {[%clk 0:03:00]}  Ra8 {[%clk 0:02:42]} 15. Rxa8 {[%clk 0:02:56]}  Qxa8 {[%clk 0:02:43]} 16. e5 {[%clk 0:02:55]}  dxe5 {[%clk 0:02:31]} 17. Nxe5 {[%clk 0:02:54]}  Qb7 {[%clk 0:02:25]} 18. g5 {[%clk 0:02:53]}  Ne8 {[%clk 0:02:12]} 19. Qf3 {[%clk 0:02:49]}  Bxe5 {[%clk 0:02:03]} 20. fxe5 {[%clk 0:02:49]}  Qc7 {[%clk 0:01:46]} 21. e6 {[%clk 0:02:47]}  Nd4 {[%clk 0:01:38]} 22. exf7+ {[%clk 0:02:25]}  Kh8 {[%clk 0:01:38]} 23. Qf4 {[%clk 0:02:25]}  Qxf4 {[%clk 0:01:27]} 24. Bxf4 {[%clk 0:02:24]}  Rxf7 {[%clk 0:01:10]} 25. Be5+ {[%clk 0:02:23]}  Kg8 {[%clk 0:01:10]} 26. Rxf7 {[%clk 0:02:12]}  Kxf7 {[%clk 0:01:10]} 27. Bxd4 {[%clk 0:02:12]}  cxd4 {[%clk 0:01:10]} 28. Ne2 {[%clk 0:02:12]}  e5 {[%clk 0:01:08]} 29. Kf2 {[%clk 0:02:05]}  Nd6 {[%clk 0:01:08]} 30. c3 {[%clk 0:02:01]}  Nf5 {[%clk 0:00:41]} 31. Bd5+ {[%clk 0:01:48]}  Kg7 {[%clk 0:00:38]} 32. cxd4 {[%clk 0:01:46]}  Nxd4 {[%clk 0:00:34]} 33. Nxd4 {[%clk 0:01:46]}  exd4 {[%clk 0:00:34]} 34. h4 {[%clk 0:01:46]}  h6 {[%clk 0:00:34]} 35. Kf3 {[%clk 0:01:41]}  Bf5 {[%clk 0:00:32]} 36. Be4 {[%clk 0:01:40]}  hxg5 {[%clk 0:00:31]} 37. hxg5 {[%clk 0:01:40]}  Kf7 {[%clk 0:00:25]} 38. Kf4 {[%clk 0:01:40]}  Be6 {[%clk 0:00:06]} 39. Ke5 {[%clk 0:01:39]}  Bd7 {[%clk 0:00:02]} 40. Bd5+ {[%clk 0:01:37]}  Ke7 {[%clk 0:00:02]} 41. Kxd4 {[%clk 0:01:36]}  Kd6 {[%clk 0:00:02]} 42. Be4 {[%clk 0:01:36]}  Be8 {[%clk 0:00:03]} 43. b4 {[%clk 0:01:33]}  Bf7 {[%clk 0:00:04]} 44. Ke3 {[%clk 0:01:29]}  Be8 {[%clk 0:00:04]} 45. Kd4 {[%clk 0:01:24]}  Bf7 {[%clk 0:00:04]} 46. Bb7 {[%clk 0:01:21]}  Be8 {[%clk 0:00:04]} 47. Bc8 {[%clk 0:01:18]}  Bf7 {[%clk 0:00:02]} 48. Bg4 {[%clk 0:01:16]}  Be8 {[%clk 0:00:02]} 49. Bf3 {[%clk 0:01:13]}  Bf7 {[%clk 0:00:02]} 50. Be4 {[%clk 0:01:13]}  Be8 {[%clk 0:00:03]} 51. Bd5 {[%clk 0:01:13]}  Bd7 {[%clk 0:00:02]} 52. Bf7 {[%clk 0:01:13]}  Bf5 {[%clk 0:00:02]} 53. Be8 {[%clk 0:01:12]}  Ke7 {[%clk 0:00:03]} 54. Bxb5 {[%clk 0:01:11]}  Kd6 {[%clk 0:00:04]} 55. Bc4 {[%clk 0:01:11]}  Kc7 {[%clk 0:00:04]} 56. Kc5 {[%clk 0:01:10]}  Kb7 {[%clk 0:00:04]} 57. d4 {[%clk 0:01:11]}  Kc7 {[%clk 0:00:04]} 58. b5 {[%clk 0:01:10]}  Kb7 {[%clk 0:00:05]} 59. b6 {[%clk 0:01:10]}  Kb8 {[%clk 0:00:05]} 60. Ba6 {[%clk 0:01:09]}  Be4 {[%clk 0:00:04]} 61. Kd6 {[%clk 0:01:08]}  Bd5 {[%clk 0:00:03]} 62. Kxd5 {[%clk 0:01:06]}  Ka8 {[%clk 0:00:03]} 63. Kc6 {[%clk 0:01:05]}  Kb8 {[%clk 0:00:03]} 64. d5 {[%clk 0:01:04]}  Ka8 {[%clk 0:00:03]} 65. d6 {[%clk 0:01:04]}  Kb8 {[%clk 0:00:03]} 66. d7 {[%clk 0:01:04]} 1-0


[Site "https://www.chess.com"]

[Event "Titled Tuesday Blitz April 25 Late 2023"]
[White "Antonova, Nadezhda"]
[Black "Fuentes Godoy, Lilia Ivonne"]
[WhiteFideId "14700182"]
[BlackFideId "5104130"]
[WhiteElo "1765"]
[BlackElo "2096"]
[Result "0-1"]
[Round "11"]
[TimeControl "180+2"]
[Date "2023.04.25"]
[WhiteClock "0:00:02"]
[BlackClock "0:01:08"]

1. Nf3 {[%clk 0:02:59]}  d5 {[%clk 0:02:59]} 2. b3 {[%clk 0:02:59]}  e6 {[%clk 0:02:59]} 3. Bb2 {[%clk 0:03:00]}  f5 {[%clk 0:02:59]} 4. g3 {[%clk 0:03:00]}  Nf6 {[%clk 0:03:00]} 5. Bg2 {[%clk 0:03:01]}  Bd6 {[%clk 0:03:00]} 6. O-O {[%clk 0:03:01]}  O-O {[%clk 0:03:00]} 7. d4 {[%clk 0:03:02]}  c6 {[%clk 0:03:00]} 8. Nbd2 {[%clk 0:03:01]}  Ne4 {[%clk 0:03:00]} 9. Ne5 {[%clk 0:03:00]}  Nd7 {[%clk 0:02:57]} 10. Ndf3 {[%clk 0:03:01]}  Qc7 {[%clk 0:02:53]} 11. Nd3 {[%clk 0:03:01]}  b6 {[%clk 0:02:49]} 12. c4 {[%clk 0:03:01]}  Bb7 {[%clk 0:02:49]} 13. Rc1 {[%clk 0:03:01]}  Rac8 {[%clk 0:02:47]} 14. Nfe5 {[%clk 0:02:56]}  Nxe5 {[%clk 0:02:45]} 15. dxe5 {[%clk 0:02:55]}  Be7 {[%clk 0:02:42]} 16. cxd5 {[%clk 0:02:33]}  exd5 {[%clk 0:02:42]} 17. Nf4 {[%clk 0:02:27]}  Qd7 {[%clk 0:02:35]} 18. Qd3 {[%clk 0:02:06]}  Nc5 {[%clk 0:02:33]} 19. Qc2 {[%clk 0:01:54]}  Ne6 {[%clk 0:02:33]} 20. Nd3 {[%clk 0:01:38]}  c5 {[%clk 0:02:26]} 21. Rfd1 {[%clk 0:01:37]}  d4 {[%clk 0:02:24]} 22. f3 {[%clk 0:01:00]}  f4 {[%clk 0:02:15]} 23. Nf2 {[%clk 0:00:53]}  Nc7 {[%clk 0:02:13]} 24. Bh3 {[%clk 0:00:44]}  Ne6 {[%clk 0:02:09]} 25. Ne4 {[%clk 0:00:32]}  Qd5 {[%clk 0:01:59]} 26. Qc4 {[%clk 0:00:10]}  Qxc4 {[%clk 0:01:57]} 27. bxc4 {[%clk 0:00:08]}  Rc6 {[%clk 0:01:54]} 28. Bxe6+ {[%clk 0:00:05]}  Rxe6 {[%clk 0:01:54]} 29. Kf2 {[%clk 0:00:04]}  Rxe5 {[%clk 0:01:53]} 30. Rd2 {[%clk 0:00:03]}  fxg3+ {[%clk 0:01:39]} 31. hxg3 {[%clk 0:00:03]}  Rxe4 {[%clk 0:01:37]} 32. Kg2 {[%clk 0:00:01]}  Re3 {[%clk 0:01:36]} 33. Rcc2 {[%clk 0:00:01]}  h5 {[%clk 0:01:26]} 34. Bc1 {[%clk 0:00:02]}  Re6 {[%clk 0:01:25]} 35. Rd1 {[%clk 0:00:03]}  Re8 {[%clk 0:01:23]} 36. Rh1 {[%clk 0:00:03]}  g6 {[%clk 0:01:22]} 37. Kf2 {[%clk 0:00:04]}  Bf6 {[%clk 0:01:22]} 38. Bf4 {[%clk 0:00:03]}  d3 {[%clk 0:01:14]} 39. exd3 {[%clk 0:00:03]}  Bd4+ {[%clk 0:01:10]} 40. Kg2 {[%clk 0:00:04]}  Re2+ {[%clk 0:01:07]} 41. Rxe2 {[%clk 0:00:04]}  Rxe2+ {[%clk 0:01:07]} 42. Kh3 {[%clk 0:00:05]}  Bxf3 {[%clk 0:01:07]} 43. Rf1 {[%clk 0:00:04]}  Bg4+ {[%clk 0:01:07]} 44. Kh4 {[%clk 0:00:02]}  Bf6+ {[%clk 0:01:07]} 45. Bg5 {[%clk 0:00:02]}  Rh2# {[%clk 0:01:08]} 0-1


[Site "https://www.chess.com"]

[Event "Titled Tuesday Blitz April 25 Late 2023"]
[White "yoriiiis"]
[Black "De Souza, Cristiano Gomes"]
[BlackFideId "2151758"]
[WhiteElo "2127"]
[BlackElo "2068"]
[Result "0-1"]
[Round "11"]
[TimeControl "180+2"]
[Date "2023.04.25"]
[WhiteClock "0:00:04"]
[BlackClock "0:00:20"]

1. e4 {[%clk 0:03:00]}  c5 {[%clk 0:02:58]} 2. Nf3 {[%clk 0:03:00]}  d6 {[%clk 0:02:56]} 3. d4 {[%clk 0:02:59]}  cxd4 {[%clk 0:02:57]} 4. Nxd4 {[%clk 0:03:00]}  Nf6 {[%clk 0:02:57]} 5. Nc3 {[%clk 0:03:00]}  g6 {[%clk 0:02:58]} 6. f3 {[%clk 0:03:00]}  Bg7 {[%clk 0:02:58]} 7. Be3 {[%clk 0:03:00]}  O-O {[%clk 0:02:58]} 8. Qd2 {[%clk 0:03:00]}  Nc6 {[%clk 0:02:58]} 9. g4 {[%clk 0:02:59]}  Be6 {[%clk 0:02:57]} 10. h4 {[%clk 0:02:49]}  Qa5 {[%clk 0:02:55]} 11. h5 {[%clk 0:02:45]}  Rfc8 {[%clk 0:02:51]} 12. hxg6 {[%clk 0:02:39]}  hxg6 {[%clk 0:02:44]} 13. Nxe6 {[%clk 0:02:28]}  fxe6 {[%clk 0:02:40]} 14. Bh6 {[%clk 0:02:27]}  Ne5 {[%clk 0:02:35]} 15. Be2 {[%clk 0:02:18]}  Bxh6 {[%clk 0:02:23]} 16. Qxh6 {[%clk 0:02:14]}  Rxc3 {[%clk 0:02:23]} 17. bxc3 {[%clk 0:02:02]}  Qxc3+ {[%clk 0:02:22]} 18. Kf2 {[%clk 0:02:00]}  Rf8 {[%clk 0:02:01]} 19. Kg2 {[%clk 0:01:05]}  Qxc2 {[%clk 0:01:53]} 20. Rae1 {[%clk 0:01:00]}  Kf7 {[%clk 0:01:44]} 21. Kf1 {[%clk 0:00:44]}  Ke8 {[%clk 0:01:36]} 22. Kg2 {[%clk 0:00:39]}  Kd7 {[%clk 0:01:23]} 23. Qe3 {[%clk 0:00:35]}  a6 {[%clk 0:01:07]} 24. Rb1 {[%clk 0:00:30]}  b5 {[%clk 0:01:01]} 25. Rhc1 {[%clk 0:00:27]}  Qxa2 {[%clk 0:00:59]} 26. Qa7+ {[%clk 0:00:25]}  Ke8 {[%clk 0:00:59]} 27. Rc8+ {[%clk 0:00:20]}  Kf7 {[%clk 0:00:59]} 28. Rxf8+ {[%clk 0:00:20]}  Kxf8 {[%clk 0:00:59]} 29. Qa8+ {[%clk 0:00:19]}  Kf7 {[%clk 0:00:58]} 30. Re1 {[%clk 0:00:19]}  Nd3 {[%clk 0:00:53]} 31. Kf1 {[%clk 0:00:12]}  Nxe1 {[%clk 0:00:50]} 32. Kxe1 {[%clk 0:00:13]}  Qa1+ {[%clk 0:00:45]} 33. Kf2 {[%clk 0:00:13]}  Qd4+ {[%clk 0:00:42]} 34. Ke1 {[%clk 0:00:12]}  Qb6 {[%clk 0:00:38]} 35. Qc8 {[%clk 0:00:11]}  a5 {[%clk 0:00:35]} 36. g5 {[%clk 0:00:11]}  Nh5 {[%clk 0:00:32]} 37. Qc1 {[%clk 0:00:10]}  b4 {[%clk 0:00:31]} 38. Qb2 {[%clk 0:00:09]}  Qc5 {[%clk 0:00:28]} 39. Bd1 {[%clk 0:00:08]}  Nf4 {[%clk 0:00:26]} 40. Kf1 {[%clk 0:00:06]}  Nd3 {[%clk 0:00:25]} 41. Qd2 {[%clk 0:00:06]}  Qc3 {[%clk 0:00:23]} 42. Ke2 {[%clk 0:00:05]}  Nc1+ {[%clk 0:00:23]} 43. Ke1 {[%clk 0:00:04]}  Qxd2+ {[%clk 0:00:22]} 44. Kxd2 {[%clk 0:00:05]}  Na2 {[%clk 0:00:21]} 45. Kc2 {[%clk 0:00:04]}  Nc3 {[%clk 0:00:20]} 0-1


[Site "https://www.chess.com"]